fUST/lending_fUST_20240621
["ID","MTS","AMOUNT","RATE_DAILY","PERIOD"]
[330030191,1718955046095,-500.0,0.00054602,120]
[330030192,1718955046104,-500.0,0.00054602,120]
[330030193,1718955046113,-500.0,0.00054602,120]
[330030194,1718955046122,-871.3,0.00054602,120]
[330030195,1718955046136,-509.95313776,0.00054602,120]
[330030196,1718955046145,-614.12,0.00054602,120]
[330030197,1718955046154,-909.11,0.00054602,120]
[330030198,1718955046163,-5431.59,0.00054602,120]
[330030199,1718955046172,-504.58662084,0.00054602,120]
[330030200,1718955046181,-1352.06,0.00054602,120]
[330030201,1718955046190,-500.0,0.00054602,120]
[330030202,1718955046199,-500.0,0.00054602,120]
[330030203,1718955046208,-510.92169641,0.00054602,120]
[330030204,1718955046217,-4373.56,0.00054602,120]
[330030205,1718955046226,-500.0,0.00054602,120]
[330030206,1718955046235,-4047.69,0.00054602,120]
[330030207,1718955046244,-514.36109004,0.00054602,120]
[330030208,1718955046253,-509.44155376,0.00054602,120]
[330030209,1718955046262,-507.07411023,0.00054602,120]
[330030210,1718955046271,-500.0,0.00054602,120]
[330030211,1718955046279,-500.0,0.00054602,120]
[330030212,1718955046288,-500.0,0.00054602,120]
[330030213,1718955046297,-500.0,0.00054602,120]
[330030214,1718955046306,-515.57382204,0.00054602,120]
[330030215,1718955046320,-500.0,0.00054602,120]
[330030216,1718955046329,-500.0,0.00054602,120]
[330030217,1718955046338,-503.20887304,0.00054602,120]
[330030218,1718955046347,-500.0,0.00054602,120]
[330030219,1718955046358,-1715.61,0.00054682,120]
[330030220,1718955046367,-1146.37,0.00054682,120]
[330030221,1718955046376,-500.0,0.00054682,120]
[330030222,1718955046390,-1257.87,0.00054682,120]
[330030223,1718955046401,-500.0,0.00054683,120]
[330030224,1718955046410,-591.86,0.00054683,120]
[330030225,1718955046419,-1715.61,0.00054683,120]
[330030226,1718955046428,-1715.61,0.00054683,120]
[330030227,1718955046437,-1715.61,0.00054683,120]
[330030228,1718955046446,-1715.61,0.00054683,120]
[330030229,1718955046455,-1715.61,0.00054683,120]
[330030230,1718955046464,-1715.77,0.00054683,120]
[330030231,1718955046473,-1146.37,0.00054683,120]
[330030232,1718955046482,-1146.37,0.00054683,120]
[330030233,1718955046491,-1146.37,0.00054683,120]
[330030234,1718955046501,-1146.37,0.00054683,120]
[330030235,1718955046510,-500.0,0.00054683,120]
[330030236,1718955046518,-500.0,0.00054683,120]
[330030237,1718955046527,-500.0,0.00054683,120]
[330030238,1718955046537,-1257.87,0.00054683,120]
[330030239,1718955046547,-210.85289081,0.00054683,120]
[330030240,1718955046557,-1257.87,0.00054683,120]
[330030241,1718955046567,-1257.87,0.00054683,120]
[330030243,1718955046654,-1257.87,0.00054683,120]
[330030245,1718955046664,-500.0,0.00054684,120]
[330030247,1718955046674,-409.30195055,0.00054684,120]
[330030248,1718955046684,-500.0,0.00054684,120]
[330030249,1718955046694,-505.10865373,0.00054684,120]
[330030250,1718955046704,-500.0,0.00054684,120]
[330030251,1718955046713,-435.28869484,0.00054684,120]
[330030252,1718955046723,-500.0,0.00054684,120]
[330030254,1718955046733,-500.0,0.00054684,120]
[330030256,1718955046744,-500.0,0.00054684,120]
[330030258,1718955046754,-500.0,0.00054684,120]
[330030260,1718955046764,-698.83,0.00054684,120]
[330030261,1718955046774,-502.60002531,0.00054684,120]
[330030263,1718955046784,-500.0,0.00054684,120]
[330030265,1718955046793,-811.73,0.00054684,120]
[330030266,1718955046803,-528.79,0.00054684,120]
[330030267,1718955046813,-500.0,0.00054684,120]
[330030268,1718955046822,-500.0,0.00054684,120]
[330030269,1718955046831,-500.0,0.00054684,120]
[330030270,1718955046841,-999.09,0.00054684,120]
[330030271,1718955046850,-1627.26,0.00054684,120]
[330030272,1718955046859,-521.56,0.00054684,120]
[330030273,1718955046869,-523.21,0.00054684,2]
[330030274,1718955046879,-1304.36,0.00054684,120]
[330030275,1718955046892,-524.6,0.00054684,120]
[330030276,1718955046901,-566.62,0.00054684,120]
[330030277,1718955046910,-174.58820022,0.00054684,120]
[330030370,1718955940117,-300.0,0.00017499,2]
[330030371,1718955940139,-63.12349084,0.000175,2]
[330030372,1718955991534,150.5,0.0002382,62]
[330030373,1718956005105,-192.83453179,0.00017499,2]
[330030375,1718956035107,-3657.39220333,0.00017499,2]
[330030376,1718956035127,-2342.60779667,0.000175,2]
[330030377,1718956038103,-6016.17724286,0.000175,2]
[330030378,1718956096009,-300.0,0.00017499,2]
[330030379,1718956096041,-200.0,0.000175,2]
[330030380,1718956110256,188.81,0.0002382,62]
[330030381,1718956111124,150.5,0.0002382,62]
[330030382,1718956148130,-300.0,0.00017499,2]
[330030383,1718956148151,-30150.88830656,0.000175,2]
[330030384,1718956148673,-46710.40920083,0.000175,2]
[330030385,1718956148697,-988.2494896,0.00018882,2]
[330030386,1718956148717,-1985.2962702,0.00018982,2]
[330030387,1718956148737,-427.54371042,0.00019178,2]
[330030388,1718956148761,-67456.80129281,0.0002,2]
[330030389,1718956148780,-250.0,0.00020762,2]
[330030390,1718956148800,-313.455423,0.00022221,2]
[330030391,1718956148818,-67577.40461314,0.0002383,2]
[330030392,1718956152198,-324.14,0.0002136,3]
[330030393,1718956152219,-79192.59538686,0.0002383,2]
[330030394,1718956152239,-122498.2198513,0.0002385,2]
[330030395,1718956159101,-21949.52154688,0.0002385,2]
[330030396,1718956160130,-2384.5270806,0.0002385,2]
[330030397,1718956161155,-26175.38573255,0.0002385,2]
[330030398,1718956164387,-121525.34578867,0.0002385,2]
[330030399,1718956164408,-156.008132,0.00027244,2]
[330030400,1718956164429,-253.8013263,0.00028482,2]
[330030401,1718956164449,-156.37245685,0.00030812,4]
[330030402,1718956164469,-313.455423,0.00033332,2]
[330030403,1718956164488,-20264.43416469,0.00034,2]
[330030404,1718956164508,-11511.93,0.00035616,3]
[330030405,1718956164529,-9593.28,0.00035616,3]
[330030406,1718956164550,-366.13410949,0.00041096,31]
[330030407,1718956164570,-190.571,0.00044549,120]
[330030408,1718956164589,-190.572,0.00044549,120]
[330030409,1718956164610,-190.572,0.00044549,120]
[330030410,1718956164629,-451.204199,0.00046,120]
[330030411,1718956164648,-500.0,0.00047,120]
[330030412,1718956164673,-500.0,0.00047,120]
[330030413,1718956164692,-500.0,0.00048,120]
[330030414,1718956164713,-500.0,0.00048,120]
[330030415,1718956164733,-1837.13887583,0.0004826,2]
[330030416,1718956165144,-11015.12893,0.0004826,2]
[330030417,1718956170132,-7994.4,0.0004825,3]
[330030418,1718956170153,-71839.76938467,0.0004826,2]
[330030419,1718956170174,-5000.0,0.000489,4]
[330030420,1718956170195,-500.0,0.00049,120]
[330030421,1718956170217,-500.0,0.00049,120]
[330030422,1718956171090,511.11830377,0.00028382,2]
[330030423,1718956173064,511.11830375,0.00029595,2]
[330030424,1718956175172,511.11830375,0.00030807,2]
[330030425,1718956177072,511.11830375,0.0003202,2]
[330030426,1718956179064,511.11830375,0.00033232,2]
[330030563,1718956238203,-10420.1420642,0.00031548,7]
[330030564,1718956238215,-26477.92064735,0.00031548,7]
[330030565,1718956238224,-27032.8753518,0.00049315,2]
[330030566,1718956238234,-155.75480877,0.00049999,4]
[330030567,1718956238245,-1242.40044129,0.0005,19]
[330030568,1718956238254,-335.2,0.00051313,60]
[330030569,1718956238264,-335.3,0.00051534,60]
[330030570,1718956238274,-335.3,0.00051755,60]
[330030571,1718956238284,-152.0,0.00051755,60]
[330030572,1718956238294,-153.0,0.00052007,30]
[330030573,1718956238303,-153.0,0.00052007,30]
[330030574,1718956238315,-153.0,0.00052007,30]
[330030575,1718956238325,-153.0,0.00052007,30]
[330030576,1718956238334,-153.0,0.00052007,30]
[330030577,1718956238344,-153.0,0.00052007,30]
[330030578,1718956238354,-1000.0,0.00053,120]
[330030579,1718956238364,-500.0,0.00053,120]
[330030580,1718956238374,-156.91461836,0.00053299,120]
[330030581,1718956238384,-14782.46003881,0.000533,120]
[330030582,1718956238394,-1000.0,0.000535,120]
[330030583,1718956238404,-5272.36143873,0.00053842,120]
[330030584,1718956238414,-6662.0,0.00053962,3]
[330030585,1718956238424,-11710.6,0.00053972,120]
[330030586,1718956238434,-500.0,0.00054,120]
[330030587,1718956238444,-571.715,0.00054,54]
[330030588,1718956238453,-5272.36143873,0.00054202,120]
[330030589,1718956238463,-5272.36143873,0.00054364,120]
[330030590,1718956238473,-500.0,0.00054419,30]
[330030591,1718956238483,-11710.6,0.00054419,120]
[330030592,1718956238493,-11710.6,0.00054419,120]
[330030593,1718956238503,-648.33,0.0005451,30]
[330030594,1718956238513,-1500.0,0.00054519,120]
[330030595,1718956238522,-500.0,0.00054519,120]
[330030596,1718956238532,-11710.6,0.00054519,120]
[330030597,1718956238542,-11710.6,0.00054519,120]
[330030598,1718956238552,-11710.6,0.00054519,120]
[330030599,1718956238567,-11710.6,0.00054519,120]
[330030600,1718956238578,-259.38906206,0.0005452,61]
[330030601,1718956238588,-500.0,0.0005452,120]
[330030602,1718956238599,-509.45202368,0.0005452,120]
[330030603,1718956238610,-517.1324249,0.0005452,120]
[330030604,1718956238620,-611.47,0.0005452,120]
[330030605,1718956238630,-611.37370585,0.0005452,15]
[330030606,1718956238640,-500.0,0.0005452,20]
[330030607,1718956238650,-500.0,0.0005452,120]
[330030608,1718956238660,-500.0,0.0005452,120]
[330030609,1718956238670,-500.0,0.0005452,120]
[330030610,1718956238680,-500.0,0.0005452,2]
[330030611,1718956238693,-500.0,0.0005452,120]
[330030612,1718956238703,-500.0,0.0005452,120]
[330030613,1718956238713,-523.90350244,0.0005452,120]
[330030614,1718956238723,-504.36,0.0005452,120]
[330030615,1718956238734,-505.5880634,0.0005452,120]
[330030616,1718956238744,-500.0,0.0005452,120]
[330030617,1718956238753,-500.0,0.0005452,120]
[330030618,1718956238764,-500.0,0.0005452,120]
[330030619,1718956238775,-500.0,0.0005452,120]
[330030620,1718956238786,-995.21,0.0005452,120]
[330030621,1718956238797,-500.0,0.0005452,120]
[330030622,1718956238806,-500.0,0.0005452,120]
[330030623,1718956238820,-500.0,0.0005452,120]
[330030624,1718956238830,-159.86205863,0.0005452,120]
[330030625,1718956238840,-500.0,0.0005452,120]
[330030626,1718956238850,-500.0,0.0005452,120]
[330030627,1718956238860,-500.0,0.0005452,120]
[330030628,1718956238870,-500.0,0.0005452,120]
[330030629,1718956238880,-2000.0,0.0005452,5]
[330030630,1718956238890,-900.42,0.0005452,120]
[330030631,1718956238900,-500.0,0.0005452,120]
[330030632,1718956238911,-500.0,0.0005452,120]
[330030633,1718956238920,-500.0,0.0005452,120]
[330030634,1718956238930,-500.0,0.0005452,120]
[330030635,1718956238941,-500.0,0.0005452,120]
[330030636,1718956238950,-500.0,0.0005452,120]
[330030637,1718956238960,-500.0,0.0005452,120]
[330030638,1718956238970,-629.67,0.0005452,120]
[330030639,1718956238979,-500.0,0.0005452,120]
[330030640,1718956238989,-500.0,0.0005452,120]
[330030641,1718956238999,-266.14745,0.0005452,14]
[330030642,1718956239009,-266.14745,0.0005452,14]
[330030643,1718956239019,-500.0,0.0005452,120]
[330030644,1718956239029,-266.14745,0.0005452,14]
[330030645,1718956239039,-266.14745,0.0005452,14]
[330030646,1718956239049,-268.16710052,0.0005452,120]
[330030647,1718956239060,-500.0,0.0005452,120]
[330030648,1718956239071,-500.0,0.0005452,120]
[330030649,1718956239082,-500.0,0.0005452,120]
[330030650,1718956239092,-500.0,0.0005452,120]
[330030651,1718956239103,-500.0,0.0005452,120]
[330030652,1718956239114,-411.6235829,0.0005452,120]
[330030653,1718956239125,-500.0,0.0005452,120]
[330030654,1718956239136,-500.0,0.0005452,120]
[330030655,1718956239146,-500.0,0.0005452,120]
[330030656,1718956239157,-500.0,0.0005452,2]
[330030657,1718956239168,-500.0,0.0005452,120]
[330030658,1718956239178,-500.0,0.0005452,120]
[330030659,1718956239188,-500.0,0.0005452,120]
[330030660,1718956239199,-500.0,0.0005452,120]
[330030661,1718956239209,-1747.52,0.0005452,120]
[330030662,1718956239220,-500.0,0.0005452,120]
[330030663,1718956239231,-1216.65,0.0005452,120]
[330030664,1718956239241,-500.0,0.0005452,120]
[330030665,1718956239252,-500.0,0.0005452,120]
[330030666,1718956239263,-500.0,0.0005452,120]
[330030667,1718956239274,-500.0,0.0005452,120]
[330030668,1718956239284,-500.0,0.0005452,120]
[330030669,1718956239294,-500.0,0.0005452,120]
[330030670,1718956239305,-500.0,0.0005452,120]
[330030671,1718956239318,-500.0,0.0005452,7]
[330030672,1718956239328,-500.0,0.0005452,120]
[330030673,1718956239339,-528.8,0.0005452,120]
[330030674,1718956239350,-500.0,0.0005452,120]
[330030675,1718956239361,-500.0,0.0005452,120]
[330030676,1718956239371,-500.0,0.0005452,120]
[330030677,1718956239381,-500.0,0.0005452,120]
[330030678,1718956239391,-500.0,0.0005452,120]
[330030679,1718956239401,-899.6,0.0005452,120]
[330030680,1718956239411,-500.0,0.0005452,120]
[330030681,1718956239420,-508.35374932,0.0005452,120]
[330030682,1718956239431,-500.0,0.0005452,120]
[330030683,1718956239441,-500.0,0.0005452,120]
[330030684,1718956239451,-500.0,0.0005452,120]
[330030685,1718956239460,-294.55061259,0.0005452,120]
[330030686,1718956239473,-500.0,0.0005452,120]
[330030687,1718956239483,-500.0,0.0005452,120]
[330030688,1718956239494,-500.0,0.0005452,120]
[330030689,1718956239513,-1299.86,0.0005452,120]
[330030690,1718956239527,-404.74010158,0.0005452,120]
[330030691,1718956239539,-500.0,0.0005452,120]
[330030692,1718956239550,-500.0,0.0005452,120]
[330030693,1718956239563,-500.0,0.0005452,120]
[330030694,1718956239575,-151.0,0.0005452,14]
[330030695,1718956239585,-151.0,0.0005452,14]
[330030697,1718956239596,-915.8,0.0005452,120]
[330030699,1718956239611,-151.0,0.0005452,14]
[330030701,1718956239622,-151.0,0.0005452,14]
[330030702,1718956239632,-210.152065,0.0005452,14]
[330030703,1718956239643,-500.0,0.0005452,120]
[330030704,1718956239653,-500.0,0.0005452,30]
[330030705,1718956239664,-500.0,0.0005452,120]
[330030706,1718956239674,-500.0,0.0005452,120]
[330030707,1718956239685,-151.0,0.0005452,14]
[330030708,1718956239695,-151.0,0.0005452,14]
[330030709,1718956239709,-500.0,0.0005452,120]
[330030710,1718956239720,-151.0,0.0005452,14]
[330030711,1718956239731,-151.0,0.0005452,14]
[330030712,1718956239742,-541.4,0.0005452,120]
[330030713,1718956239753,-513.5277918,0.0005452,120]
[330030714,1718956239763,-500.0,0.0005452,120]
[330030715,1718956239897,-322.77097963,0.0005452,120]
[330030716,1718956239909,-514.81,0.0005452,120]
[330030717,1718956239920,-500.0,0.0005452,120]
[330030718,1718956239930,-500.0,0.0005452,120]
[330030719,1718956239940,-500.0,0.0005452,120]
[330030720,1718956239950,-510.68339046,0.0005452,120]
[330030721,1718956239959,-500.0,0.0005452,120]
[330030722,1718956239968,-500.0,0.0005452,120]
[330030723,1718956239978,-509.22288165,0.0005452,120]
[330030724,1718956239988,-500.0,0.0005452,120]
[330030725,1718956239997,-537.28984363,0.0005452,120]
[330030726,1718956240007,-516.16344106,0.0005452,120]
[330030727,1718956240016,-500.0,0.0005452,120]
[330030728,1718956240026,-500.0,0.0005452,120]
[330030729,1718956240035,-500.0,0.0005452,120]
[330030730,1718956240044,-500.0,0.0005452,120]
[330030731,1718956240054,-504.65462272,0.0005452,120]
[330030732,1718956240066,-500.0,0.0005452,120]
[330030733,1718956240075,-500.0,0.0005452,120]
[330030734,1718956240085,-500.0,0.0005452,120]
[330030735,1718956240094,-500.0,0.0005452,120]
[330030736,1718956240104,-2924.66,0.0005452,120]
[330030737,1718956240113,-500.0,0.0005452,120]
[330030738,1718956240122,-558.79,0.0005452,120]
[330030739,1718956240132,-176.93446258,0.0005452,120]
[330030740,1718956240141,-509.7565632,0.0005452,120]
[330030741,1718956240150,-500.0,0.0005452,120]
[330030742,1718956240160,-500.0,0.0005452,120]
[330030743,1718956240169,-1000.0,0.0005452,120]
[330030744,1718956240178,-500.0,0.0005452,120]
[330030745,1718956240187,-500.0,0.0005452,120]
[330030746,1718956240197,-500.0,0.0005452,120]
[330030747,1718956240207,-1182.11,0.0005452,120]
[330030748,1718956240215,-500.0,0.0005452,120]
[330030749,1718956240225,-500.0,0.0005452,120]
[330030750,1718956240234,-500.0,0.0005452,120]
[330030751,1718956240243,-471.26378766,0.0005452,120]
[330030752,1718956240252,-500.0,0.0005452,120]
[330030753,1718956240261,-715.2,0.0005452,120]
[330030754,1718956240270,-500.0,0.0005452,120]
[330030755,1718956240279,-257.252587,0.0005452,14]
[330030756,1718956240288,-504.05343374,0.0005452,120]
[330030757,1718956240297,-535.28090366,0.0005452,120]
[330030758,1718956240306,-532.36673158,0.0005452,120]
[330030759,1718956240320,-500.0,0.0005452,120]
[330030760,1718956240330,-500.0,0.0005452,120]
[330030761,1718956240340,-520.52033147,0.0005452,120]
[330030762,1718956240350,-500.0,0.0005452,120]
[330030763,1718956240360,-500.0,0.0005452,120]
[330030764,1718956240369,-506.70484761,0.0005452,120]
[330030765,1718956240378,-1021.21,0.0005452,120]
[330030766,1718956240388,-568.70913637,0.0005452,120]
[330030767,1718956240397,-500.0,0.0005452,120]
[330030768,1718956240406,-500.0,0.0005452,120]
[330030769,1718956240415,-541.87432306,0.0005452,120]
[330030770,1718956240425,-500.0,0.0005452,120]
[330030771,1718956240434,-176.882177,0.0005452,14]
[330030772,1718956240443,-176.882177,0.0005452,14]
[330030773,1718956240452,-500.0,0.0005452,120]
[330030774,1718956240461,-500.0,0.0005452,120]
[330030775,1718956240471,-500.0,0.0005452,120]
[330030776,1718956240480,-500.0,0.0005452,120]
[330030777,1718956240490,-176.882177,0.0005452,14]
[330030778,1718956240499,-176.882177,0.0005452,14]
[330030779,1718956240508,-500.0,0.0005452,120]
[330030780,1718956240518,-1299.84,0.0005452,120]
[330030781,1718956240527,-505.41,0.0005452,120]
[330030782,1718956240536,-500.0,0.0005452,120]
[330030783,1718956240545,-151.0,0.0005452,14]
[330030784,1718956240554,-151.0,0.0005452,14]
[330030785,1718956240566,-684.17,0.0005452,120]
[330030786,1718956240575,-500.0,0.0005452,120]
[330030787,1718956240584,-500.0,0.0005452,120]
[330030788,1718956240594,-502.68946828,0.0005452,120]
[330030789,1718956240604,-694.01,0.0005452,120]
[330030790,1718956240613,-500.0,0.0005452,120]
[330030791,1718956240622,-500.0,0.0005452,120]
[330030792,1718956240631,-500.0,0.0005452,120]
[330030793,1718956240641,-500.0,0.0005452,120]
[330030794,1718956240650,-500.0,0.0005452,120]
[330030795,1718956240659,-493.76853558,0.0005452,120]
[330030796,1718956240668,-500.0,0.0005452,120]
[330030797,1718956240677,-500.0,0.0005452,120]
[330030798,1718956240686,-500.0,0.0005452,120]
[330030799,1718956240700,-500.0,0.0005452,120]
[330030800,1718956240709,-500.0,0.0005452,120]
[330030801,1718956240718,-500.0,0.0005452,120]
[330030802,1718956240727,-500.0,0.0005452,120]
[330030803,1718956240738,-500.0,0.0005452,120]
[330030804,1718956240747,-500.0,0.0005452,120]
[330030805,1718956240756,-500.0,0.0005452,120]
[330030806,1718956240765,-500.0,0.0005452,120]
[330030807,1718956240774,-500.0,0.0005452,120]
[330030808,1718956240784,-500.0,0.0005452,120]
[330030809,1718956240794,-500.0,0.0005452,120]
[330030810,1718956240803,-500.0,0.0005452,120]
[330030811,1718956240814,-601.61,0.0005452,120]
[330030812,1718956240824,-1379.03,0.0005452,120]
[330030813,1718956240833,-500.0,0.0005452,120]
[330030814,1718956240842,-501.08028184,0.0005452,120]
[330030815,1718956240851,-500.0,0.0005452,120]
[330030816,1718956240860,-500.58414353,0.0005452,120]
[330030817,1718956240869,-630.25167425,0.0005452,120]
[330030818,1718956240877,-500.0,0.0005452,120]
[330030819,1718956240887,-500.0,0.0005452,120]
[330030820,1718956240895,-1790.98,0.0005452,120]
[330030821,1718956240904,-500.0,0.0005452,120]
[330030822,1718956240914,-151.0,0.0005452,14]
[330030823,1718956240924,-151.0,0.0005452,14]
[330030824,1718956240933,-1183.48,0.0005452,120]
[330030825,1718956240942,-500.0,0.0005452,120]
[330030826,1718956240952,-151.0,0.0005452,14]
[330030827,1718956240962,-151.0,0.0005452,14]
[330030828,1718956240971,-1945.43,0.0005452,120]
[330030829,1718956240981,-506.76397227,0.0005452,120]
[330030830,1718956240990,-502.21333375,0.0005452,120]
[330030831,1718956240999,-500.0,0.0005452,120]
[330030832,1718956241010,-250.0,0.0005452,120]
[330030833,1718956241020,-164.23598076,0.0005452,120]
[330030834,1718956241030,-500.0,0.0005452,120]
[330030835,1718956241040,-500.0,0.0005452,120]
[330030836,1718956241050,-151.0,0.0005452,14]
[330030837,1718956241060,-153.458489,0.0005452,14]
[330030838,1718956241074,-500.0,0.0005452,120]
[330030839,1718956241085,-500.0,0.0005452,120]
[330030840,1718956241095,-500.0,0.0005452,120]
[330030841,1718956241106,-500.0,0.0005452,120]
[330030842,1718956241116,-551.3835522,0.0005452,120]
[330030843,1718956241127,-500.77693653,0.0005452,120]
[330030844,1718956241138,-500.0,0.0005452,120]
[330030845,1718956241148,-500.0,0.0005452,120]
[330030846,1718956241158,-500.0,0.0005452,120]
[330030847,1718956241167,-500.0,0.0005452,120]
[330030848,1718956241178,-500.0,0.0005452,120]
[330030849,1718956241187,-500.0,0.0005452,120]
[330030850,1718956241197,-500.0,0.0005452,120]
[330030851,1718956241206,-500.0,0.0005452,120]
[330030852,1718956241216,-500.0,0.0005452,120]
[330030853,1718956241226,-500.0,0.0005452,120]
[330030854,1718956241236,-500.0,0.0005452,120]
[330030855,1718956241246,-500.0,0.0005452,120]
[330030856,1718956241255,-500.0,0.0005452,120]
[330030857,1718956241265,-500.0,0.0005452,120]
[330030858,1718956241275,-500.0,0.0005452,120]
[330030859,1718956241284,-500.0,0.0005452,120]
[330030860,1718956241294,-500.0,0.0005452,120]
[330030861,1718956241303,-500.0,0.0005452,120]
[330030862,1718956241316,-500.0,0.0005452,120]
[330030863,1718956241326,-500.0,0.0005452,120]
[330030864,1718956241336,-500.0,0.0005452,120]
[330030865,1718956241345,-283.95,0.0005452,120]
[330030866,1718956241354,-152.177565,0.0005452,14]
[330030867,1718956241364,-500.0,0.0005452,120]
[330030868,1718956241374,-555.5,0.0005452,120]
[330030869,1718956241384,-500.0,0.0005452,120]
[330030870,1718956241394,-151.0,0.0005452,14]
[330030871,1718956241404,-151.0,0.0005452,14]
[330030872,1718956241413,-500.0,0.0005452,120]
[330030873,1718956241423,-151.0,0.0005452,14]
[330030874,1718956241432,-1014.72,0.0005452,120]
[330030875,1718956241442,-742.82,0.0005452,120]
[330030876,1718956241526,-506.69,0.0005452,120]
[330030877,1718956241536,-504.07168863,0.0005452,120]
[330030878,1718956241546,-502.2485112,0.0005452,120]
[330030879,1718956241554,-500.0,0.0005452,120]
[330030880,1718956241567,-502.74254045,0.0005452,120]
[330030881,1718956241576,-238.37479126,0.0005452,120]
[330030882,1718956241585,-500.0,0.0005452,120]
[330030883,1718956241595,-521.12488463,0.0005452,120]
[330030884,1718956241604,-519.86981776,0.0005452,120]
[330030885,1718956241612,-500.0,0.0005452,7]
[330030886,1718956241622,-510.18993085,0.0005452,120]
[330030887,1718956241631,-519.69134798,0.0005452,120]
[330030888,1718956241640,-500.0,0.0005452,120]
[330030889,1718956241650,-500.0,0.0005452,120]
[330030890,1718956241658,-1289.87,0.0005452,120]
[330030891,1718956241668,-1289.87,0.0005452,120]
[330030892,1718956241677,-500.0,0.0005452,120]
[330030893,1718956241686,-1289.87,0.0005452,120]
[330030894,1718956241696,-1289.87,0.0005452,120]
[330030895,1718956241709,-1289.87,0.0005452,120]
[330030896,1718956241719,-1289.87,0.0005452,120]
[330030897,1718956241729,-1289.87,0.0005452,120]
[330030898,1718956241738,-648.70446817,0.0005452,120]
[330030899,1718956241749,-500.0,0.0005452,120]
[330030900,1718956241759,-500.0,0.0005452,120]
[330030901,1718956241768,-777.32,0.0005452,120]
[330030902,1718956241779,-159.978347,0.0005452,14]
[330030903,1718956241792,-4651.34,0.0005452,120]
[330030904,1718956241802,-500.0,0.0005452,60]
[330030905,1718956241814,-500.0,0.0005452,120]
[330030906,1718956241823,-4651.34,0.0005452,120]
[330030907,1718956241833,-4651.34,0.0005452,120]
[330030908,1718956241842,-4651.34,0.0005452,120]
[330030909,1718956241852,-512.55544132,0.0005452,120]
[330030910,1718956241862,-4651.34,0.0005452,120]
[330030911,1718956241871,-4651.34,0.0005452,120]
[330030912,1718956241881,-4651.34,0.0005452,120]
[330030913,1718956241891,-4651.34,0.0005452,120]
[330030914,1718956241903,-4651.34,0.0005452,120]
[330030915,1718956241912,-4651.34,0.0005452,120]
[330030916,1718956241922,-4651.34,0.0005452,120]
[330030917,1718956241932,-4651.34,0.0005452,120]
[330030918,1718956241942,-4651.34,0.0005452,120]
[330030919,1718956241951,-500.0,0.0005452,120]
[330030920,1718956241960,-4651.34,0.0005452,120]
[330030921,1718956241970,-4651.34,0.0005452,120]
[330030922,1718956241979,-4651.34,0.0005452,120]
[330030923,1718956241988,-4651.34,0.0005452,120]
[330030924,1718956241998,-4651.34,0.0005452,120]
[330030925,1718956242007,-4651.34,0.0005452,120]
[330030926,1718956242016,-4651.34,0.0005452,120]
[330030927,1718956242026,-4651.34,0.0005452,120]
[330030928,1718956242036,-4651.34,0.0005452,120]
[330030929,1718956242045,-4651.34,0.0005452,120]
[330030930,1718956242055,-4651.37,0.0005452,120]
[330030931,1718956242068,-500.0,0.0005452,120]